[Event "28th CRO-chT Women 2019"]
[Site "Mali Losinj"]
[Date "2019.10.04"]
[Round "8.3"]
[White "Turk, Vesna"]
[Black "Spiranec, Noemi"]
[Result "0-1"]
[ECO "D03"]
[WhiteElo "1694"]
[BlackElo "2137"]
[Annotator "NA"]
[PlyCount "72"]
[EventDate "2019.09.28"]
[EventType "team-tourn"]
[EventCountry "CRO"]
[SourceTitle "playchess.com"]
[Source "ChessBase"]
[SourceQuality "1"]
[TimeControl "40/5400+30:1800+30"]

1. d4 {[%emt 0:00:00]} Nf6 {[%emt 0:00:00]} 2. Nf3 {[%emt 0:00:00]} d5 {[%emt 0:00:00]} 3. Bg5 {[%emt 0:00:30]} Ne4 {[%emt 0:00:00]} 4. Bf4 {[%emt 0:00:30]} c5 {[%emt 0:00:00]} 5. c3 {[%emt 0:02:30]} cxd4 {[%emt 0:00:30]} 6. cxd4 {[%emt 0:01:30]} Nc6 {[%emt 0:00:30]} 7. e3 {[%emt 0:04:30]} Bg4 {[%emt 0:07:30]} 8. Be2 {[%emt 0:01:30]} e6 {[%emt 0:00:30]} 9. O-O {[%emt 0:00:30]} Bd6 {[%emt 0:05:30]} 10. Bxd6 {[%emt 0:01:30]} Qxd6 {[%emt 0:00:30]} 11. a3 {[%emt 0:00:00]} O-O {[%emt 0:00:30]} 12. Nbd2 {[%emt 0:01:00]} Nf6 {[%emt 0:02:30]} 13. Rc1 {[%emt 0:00:30]} Rac8 {[%emt 0:04:30]} 14. Qa4 {[%emt 0:01:30]} Rc7 {[%emt 0:01:30]} 15. Bd3 {[%emt 0:03:30]} Rfc8 {[%emt 0:01:30]} 16. Rc2 {[%emt 0:00:30]} a6 {[%emt 0:14:30]} 17. Rfc1 {[%emt 0:02:30]} g6 {[%emt 0:02:30]} 18. h3 {[%emt 0:01:30]} Bf5 {[%emt 0:00:30]} 19. Bxf5 {[%emt 0:01:30]} exf5 {[%emt 0:00:30]} 20. b4 {[%emt 0:05:30]} f4 {[%emt 0:00:30]} 21. Qb3 {[%emt 0:05:30]} Re8 {[%emt 0:03:30]} 22. Nf1 {[%emt 0:05:30]} Rce7 {[%emt 0:00:30]} 23. Rc5 {[%emt 0:01:30]} Nd8 {[%emt 0:03:30]} 24. Ne5 {[%emt 0:03:30]} Ne6 {[%emt 0:01:30]} 25. Rc8 {[%emt 0:01:30]} fxe3 {[%emt 0:02:30]} 26. fxe3 {[%emt 0:01:30]} Ne4 {[%emt 0:01:30]} 27. Qa4 {[%emt 0:01:30]} Rxc8 {[%emt 0:00:30]} 28. Rxc8+ {[%emt 0:00:00]} Kg7 {[%emt 0:00:30]} 29. Qc2 {[%emt 0:11:00]} f6 {[%emt 0:01:30]} 30. Nd3 {[%emt 0:01:30]} Ng3 {[%emt 0:00:30]} 31. Nc5 {[%emt 0:10:30]} Nxd4 {[%emt 0:11:30]} 32. exd4 {[%emt 0:10:30]} Nxf1 {[%emt 0:00:30]} 33. Rc7 {[%emt 0:08:10]} Qh2+ {[%emt 0:01:30]} 34. Kxf1 {[%emt 0:01:24]} Qh1+ {[%emt 0:00:30]} 35. Kf2 {[%emt 0:00:21]} Qe1+ {[%emt 0:00:00]} 36. Kf3 {[%emt 0:01:02]} Qe3+ {[%emt 0:00:00]} 0-1

[Event "28th CRO-chT Women 2019"]
[Site "Mali Losinj"]
[Date "2019.10.04"]
[Round "8.4"]
[White "Vujnovic, Patricija"]
[Black "Krmpotic, Klara"]
[Result "1-0"]
[ECO "B07"]
[WhiteElo "2052"]
[BlackElo "1563"]
[Annotator "NA"]
[PlyCount "51"]
[EventDate "2019.09.28"]
[EventType "team-tourn"]
[EventCountry "CRO"]
[SourceTitle "playchess.com"]
[Source "ChessBase"]
[SourceQuality "1"]
[TimeControl "40/5400+30:1800+30"]

1. d4 {[%emt 0:02:30]} d6 {[%emt 0:00:30]} 2. e4 {[%emt 0:01:30]} Nf6 {[%emt 0:00:30]} 3. Nc3 {[%emt 0:00:30]} c6 {[%emt 0:00:30]} 4. a4 {[%emt 0:04:30]} a5 {[%emt 0:10:30]} 5. Nf3 {[%emt 0:01:30]} Bg4 {[%emt 0:00:00]} 6. Be2 {[%emt 0:02:30]} e6 {[%emt 0:00:00]} 7. O-O {[%emt 0:01:30]} d5 {[%emt 0:02:30]} 8. e5 {[%emt 0:03:30]} Nfd7 {[%emt 0:00:30]} 9. Be3 {[%emt 0:08:30]} Be7 {[%emt 0:01:30]} 10. Qd2 {[%emt 0:01:30]} O-O {[%emt 0:01:30]} 11. Ne1 {[%emt 0:05:30]} Bxe2 {[%emt 0:00:30]} 12. Nxe2 {[%emt 0:00:30]} c5 {[%emt 0:01:30]} 13. f4 {[%emt 0:00:30]} cxd4 {[%emt 0:04:30]} 14. Nxd4 {[%emt 0:00:30]} Bc5 {[%emt 0:01:30]} 15. Nef3 {[%emt 0:03:30]} Qb6 {[%emt 0:05:30]} 16. c3 {[%emt 0:02:30]} Nc6 {[%emt 0:01:30]} 17. Qf2 {[%emt 0:01:30]} Rac8 {[%emt 0:17:30]} 18. Rae1 {[%emt 0:07:30]} Bxd4 {[%emt 0:04:30]} 19. Nxd4 {[%emt 0:06:30]} Nxd4 {[%emt 0:02:30]} 20. Bxd4 {[%emt 0:00:30]} Qb3 {[%emt 0:03:30]} 21. f5 {[%emt 0:01:30]} exf5 {[%emt 0:14:30]} 22. Qxf5 {[%emt 0:00:30]} Nb6 {[%emt 0:07:35]} 23. e6 {[%emt 0:01:30]} f6 {[%emt 0:11:58]} 24. e7 {[%emt 0:03:30]} Rfe8 {[%emt 0:00:10]} 25. Qe6+ {[%emt 0:00:00]} Kh8 {[%emt 0:00:27]} 26. Qxb6 {[%emt 0:01:00]} 1-0

[Event "28th CRO-chT Women 2019"]
[Site "Mali Losinj"]
[Date "2019.10.04"]
[Round "8.5"]
[White "Cvitan, Ena"]
[Black "Smetisko, Marija"]
[Result "0-1"]
[ECO "D90"]
[WhiteElo "2182"]
[BlackElo "1845"]
[Annotator "NA"]
[PlyCount "100"]
[EventDate "2019.09.28"]
[EventType "team-tourn"]
[EventCountry "CRO"]
[SourceTitle "playchess.com"]
[Source "ChessBase"]
[SourceQuality "1"]
[TimeControl "40/5400+30:1800+30"]

1. d4 {[%emt 0:05:30]} Nf6 {[%emt 0:00:30]} 2. c4 {[%emt 0:00:00]} g6 {[%emt 0:00:00]} 3. Nf3 {[%emt 0:00:00]} Bg7 {[%emt 0:02:00]} 4. Nc3 {[%emt 0:01:30]} d5 {[%emt 0:00:30]} 5. h4 {[%emt 0:00:30]} b6 {[%emt 0:02:30]} 6. h5 {[%emt 0:11:30]} Bb7 {[%emt 0:06:30]} 7. h6 {[%emt 0:11:30]} Bf8 {[%emt 0:01:30]} 8. Bf4 {[%emt 0:09:30]} e6 {[%emt 0:01:30]} 9. e3 {[%emt 0:08:30]} Bd6 {[%emt 0:05:30]} 10. cxd5 {[%emt 0:10:30]} Nxd5 {[%emt 0:03:30]} 11. Bb5+ {[%emt 0:04:30]} c6 {[%emt 0:05:30]} 12. Bxd6 {[%emt 0:00:30]} Qxd6 {[%emt 0:00:30]} 13. Bd3 {[%emt 0:00:30]} Nd7 {[%emt 0:03:30]} 14. O-O {[%emt 0:01:30]} Nxc3 {[%emt 0:06:30]} 15. bxc3 {[%emt 0:00:30]} Qf8 {[%emt 0:01:30]} 16. Ne5 {[%emt 0:03:30]} Nxe5 {[%emt 0:02:30]} 17. dxe5 {[%emt 0:00:00]} Qc5 {[%emt 0:02:30]} 18. Qe2 {[%emt 0:08:00]} Qxe5 {[%emt 0:01:30]} 19. f4 {[%emt 0:01:30]} Qxc3 {[%emt 0:03:30]} 20. Rac1 {[%emt 0:00:30]} Qa3 {[%emt 0:01:30]} 21. Be4 {[%emt 0:03:45]} Rc8 {[%emt 0:04:30]} 22. Qf3 {[%emt 0:02:21]} Qa4 {[%emt 0:18:30]} 23. g4 {[%emt 0:09:35]} f5 {[%emt 0:05:30]} 24. Bd3 {[%emt 0:01:27]} Rc7 {[%emt 0:05:58]} 25. Bc4 {[%emt 0:01:20]} c5 {[%emt 0:08:05]} 26. Qe2 {[%emt 0:00:08]} a6 {[%emt 0:00:47]} 27. Qb2 {[%emt 0:00:31]} Rf8 {[%emt 0:01:42]} 28. Qxb6 {[%emt 0:01:03]} Qc6 {[%emt 0:02:21]} 29. Qxc6+ {[%emt 0:00:02]} Rxc6 {[%emt 0:00:04]} 30. Rb1 {[%emt 0:00:51]} Bc8 {[%emt 0:02:03]} 31. g5 {[%emt 0:01:57]} Rf7 {[%emt 0:01:28]} 32. Rb8 {[%emt 0:00:28]} Kd8 {[%emt 0:01:15]} 33. Rd1+ {[%emt 0:00:48]} Rd7 {[%emt 0:00:39]} 34. Rxd7+ {[%emt 0:01:49]} Kxd7 {[%emt 0:00:01]} 35. Kf2 {[%emt 0:00:21]} Kc7 {[%emt 0:00:38]} 36. Rb2 {[%emt 0:00:27]} Bb7 {[%emt 0:00:50]} 37. Ke2 {[%emt 0:00:42]} Rd6 {[%emt 0:00:29]} 38. Ke1 {[%emt 0:00:52]} Bd5 {[%emt 0:00:26]} 39. Bxd5 {[%emt 0:00:27]} exd5 {[%emt 0:00:21]} 40. Ke2 {[%emt 0:00:00]} Rb6 {[%emt 0:00:00]} 41. Rc2 {[%emt 0:01:36]} c4 {[%emt 0:04:53]} 42. Kd2 {[%emt 0:01:30]} Kd6 {[%emt 0:00:30]} 43. Kc3 {[%emt 0:00:30]} Kc5 {[%emt 0:00:30]} 44. Rc1 {[%emt 0:03:30]} a5 {[%emt 0:00:30]} 45. Rd1 {[%emt 0:02:30]} a4 {[%emt 0:01:30]} 46. Rc1 {[%emt 0:00:30]} a3 {[%emt 0:01:30]} 47. Rd1 {[%emt 0:00:30]} Rb2 {[%emt 0:05:30]} 48. e4 {[%emt 0:01:30]} fxe4 {[%emt 0:03:09]} 49. f5 {[%emt 0:01:30]} gxf5 {[%emt 0:00:22]} 50. Rd2 {[%emt 0:04:01]} Rb6 {[%emt 0:01:30]} 0-1

[Event "28th CRO-chT Women 2019"]
[Site "Mali Losinj"]
[Date "2019.10.04"]
[Round "8.6"]
[White "Vodopija, Irina"]
[Black "Djukic, Sandra"]
[Result "1/2-1/2"]
[ECO "A47"]
[WhiteElo "1704"]
[BlackElo "2179"]
[Annotator "NA"]
[PlyCount "50"]
[EventDate "2019.09.28"]
[EventType "team-tourn"]
[EventCountry "CRO"]
[SourceTitle "playchess.com"]
[Source "ChessBase"]
[SourceQuality "1"]
[TimeControl "40/5400+30:1800+30"]

1. d4 {[%emt 0:00:30]} Nf6 {[%emt 0:05:30]} 2. Nf3 {[%emt 0:00:30]} e6 {[%emt 0:01:30]} 3. g3 {[%emt 0:01:30]} b6 {[%emt 0:02:30]} 4. Bg2 {[%emt 0:00:30]} Bb7 {[%emt 0:00:00]} 5. O-O {[%emt 0:00:30]} c5 {[%emt 0:04:00]} 6. e3 {[%emt 0:05:30]} d6 {[%emt 0:05:30]} 7. c4 {[%emt 0:01:30]} Qc7 {[%emt 0:05:30]} 8. b3 {[%emt 0:04:30]} a6 {[%emt 0:04:30]} 9. Bb2 {[%emt 0:02:30]} Nbd7 {[%emt 0:00:30]} 10. Nc3 {[%emt 0:01:30]} cxd4 {[%emt 0:02:30]} 11. Qxd4 {[%emt 0:02:30]} Be7 {[%emt 0:02:30]} 12. Rfe1 {[%emt 0:06:30]} O-O {[%emt 0:00:30]} 13. Rad1 {[%emt 0:04:30]} Rfd8 {[%emt 0:04:30]} 14. Qd2 {[%emt 0:05:30]} Rac8 {[%emt 0:11:30]} 15. Qe2 {[%emt 0:09:30]} Nc5 {[%emt 0:03:30]} 16. Nd4 {[%emt 0:03:30]} Bxg2 {[%emt 0:10:30]} 17. Kxg2 {[%emt 0:00:00]} Bf8 {[%emt 0:00:00]} 18. Qf3 {[%emt 0:05:00]} Nfd7 {[%emt 0:02:00]} 19. Qe2 {[%emt 0:06:30]} Nf6 {[%emt 0:19:17]} 20. Qf3 {[%emt 0:02:30]} Be7 {[%emt 0:06:19]} 21. Kg1 {[%emt 0:01:30]} Ncd7 {[%emt 0:04:18]} 22. Qg2 {[%emt 0:03:30]} Qc5 {[%emt 0:03:20]} 23. Ne4 {[%emt 0:05:30]} Nxe4 {[%emt 0:00:07]} 24. Qxe4 {[%emt 0:00:30]} Nf6 {[%emt 0:00:50]} 25. Qf3 {[%emt 0:00:30]} b5 {[%emt 0:00:45]} 1/2-1/2

[Event "28th CRO-chT Women 2019"]
[Site "Mali Losinj"]
[Date "2019.10.04"]
[Round "8.7"]
[White "Berke, Ana"]
[Black "Alaber, Maja"]
[Result "1-0"]
[ECO "C64"]
[WhiteElo "2060"]
[BlackElo "1494"]
[Annotator "NA"]
[PlyCount "89"]
[EventDate "2019.09.28"]
[EventType "team-tourn"]
[EventCountry "CRO"]
[SourceTitle "playchess.com"]
[Source "ChessBase"]
[SourceQuality "1"]
[TimeControl "40/5400+30:1800+30"]

1. e4 {[%emt 0:10:30]} e5 {[%emt 0:00:30]} 2. Nf3 {[%emt 0:00:30]} Nc6 {[%emt 0:00:00]} 3. Nc3 {[%emt 0:00:30]} Bc5 {[%emt 0:01:00]} 4. Bb5 {[%emt 0:00:30]} Nd4 {[%emt 0:02:30]} 5. O-O {[%emt 0:00:30]} c6 {[%emt 0:02:30]} 6. Bc4 {[%emt 0:02:30]} d6 {[%emt 0:01:30]} 7. Nxd4 {[%emt 0:03:30]} Bxd4 {[%emt 0:00:30]} 8. d3 {[%emt 0:00:30]} b5 {[%emt 0:03:30]} 9. Bb3 {[%emt 0:00:30]} a5 {[%emt 0:02:30]} 10. a3 {[%emt 0:00:30]} h6 {[%emt 0:02:30]} 11. Be3 {[%emt 0:00:30]} Bxe3 {[%emt 0:03:30]} 12. fxe3 {[%emt 0:00:00]} Nf6 {[%emt 0:01:30]} 13. Ne2 {[%emt 0:02:00]} Bg4 {[%emt 0:03:30]} 14. Qe1 {[%emt 0:01:30]} O-O {[%emt 0:02:30]} 15. Ng3 {[%emt 0:00:30]} d5 {[%emt 0:06:30]} 16. exd5 {[%emt 0:02:30]} Nxd5 {[%emt 0:00:30]} 17. Qf2 {[%emt 0:01:30]} Qg5 {[%emt 0:06:30]} 18. Rae1 {[%emt 0:02:30]} Qg6 {[%emt 0:07:30]} 19. Nf5 {[%emt 0:02:30]} Bxf5 {[%emt 0:03:30]} 20. Qxf5 {[%emt 0:00:30]} Qxf5 {[%emt 0:00:30]} 21. Rxf5 {[%emt 0:00:30]} Rae8 {[%emt 0:01:30]} 22. g3 {[%emt 0:01:30]} a4 {[%emt 0:01:30]} 23. Ba2 {[%emt 0:00:30]} g6 {[%emt 0:02:30]} 24. Rf2 {[%emt 0:00:30]} Kg7 {[%emt 0:00:30]} 25. e4 {[%emt 0:01:30]} Ne7 {[%emt 0:02:30]} 26. Ref1 {[%emt 0:00:30]} f5 {[%emt 0:00:30]} 27. Be6 {[%emt 0:01:30]} fxe4 {[%emt 0:04:30]} 28. Rf7+ {[%emt 0:01:30]} Rxf7 {[%emt 0:00:30]} 29. Rxf7+ {[%emt 0:00:30]} Kh8 {[%emt 0:00:30]} 30. Bd7 {[%emt 0:00:30]} Rb8 {[%emt 0:03:30]} 31. Rxe7 {[%emt 0:00:30]} Rb7 {[%emt 0:00:00]} 32. dxe4 {[%emt 0:00:30]} c5 {[%emt 0:01:00]} 33. Kf2 {[%emt 0:01:30]} b4 {[%emt 0:00:30]} 34. Re8+ {[%emt 0:00:30]} Kg7 {[%emt 0:00:30]} 35. Bxa4 {[%emt 0:00:00]} bxa3 {[%emt 0:00:30]} 36. bxa3 {[%emt 0:00:00]} Ra7 {[%emt 0:00:30]} 37. Bb3 {[%emt 0:00:30]} Rxa3 {[%emt 0:01:30]} 38. Rxe5 {[%emt 0:00:00]} Ra5 {[%emt 0:00:00]} 39. Bc4 {[%emt 0:01:00]} Kf6 {[%emt 0:01:00]} 40. Re6+ {[%emt 0:00:00]} Kg7 {[%emt 0:00:00]} 41. e5 {[%emt 0:01:00]} Ra8 {[%emt 0:02:00]} 42. Re7+ {[%emt 0:00:00]} Kh8 {[%emt 0:01:30]} 43. e6 {[%emt 0:00:00]} Rf8+ {[%emt 0:00:30]} 44. Rf7 {[%emt 0:00:30]} Re8 {[%emt 0:00:00]} 45. e7 {[%emt 0:00:00]} 1-0

[Event "28th CRO-chT Women 2019"]
[Site "Mali Losinj"]
[Date "2019.10.04"]
[Round "8.8"]
[White "Smetisko, Renata"]
[Black "Bogdanic, Katarina"]
[Result "0-1"]
[ECO "B30"]
[WhiteElo "1253"]
[BlackElo "1899"]
[Annotator "NA"]
[PlyCount "78"]
[EventDate "2019.09.28"]
[EventType "team-tourn"]
[EventCountry "CRO"]
[SourceTitle "playchess.com"]
[Source "ChessBase"]
[SourceQuality "1"]
[TimeControl "40/5400+30:1800+30"]

1. e4 {[%emt 0:00:00]} c5 {[%emt 0:00:30]} 2. Bc4 {[%emt 0:00:00]} e6 {[%emt 0:00:30]} 3. Nc3 {[%emt 0:02:30]} Nc6 {[%emt 0:00:30]} 4. Nf3 {[%emt 0:00:30]} g6 {[%emt 0:03:30]} 5. d3 {[%emt 0:02:30]} Bg7 {[%emt 0:00:00]} 6. O-O {[%emt 0:01:30]} Nge7 {[%emt 0:01:00]} 7. Re1 {[%emt 0:00:30]} d6 {[%emt 0:00:30]} 8. Bg5 {[%emt 0:02:30]} h6 {[%emt 0:03:30]} 9. Bf4 {[%emt 0:00:30]} O-O {[%emt 0:01:30]} 10. Qd2 {[%emt 0:02:30]} Kh7 {[%emt 0:02:30]} 11. e5 {[%emt 0:01:30]} dxe5 {[%emt 0:08:30]} 12. Nxe5 {[%emt 0:03:30]} b6 {[%emt 0:25:30]} 13. Re3 {[%emt 0:06:30]} Nxe5 {[%emt 0:07:30]} 14. Bxe5 {[%emt 0:00:30]} f6 {[%emt 0:05:30]} 15. Bf4 {[%emt 0:02:30]} e5 {[%emt 0:01:30]} 16. Bg3 {[%emt 0:22:30]} Bb7 {[%emt 0:01:30]} 17. f4 {[%emt 0:00:30]} Nf5 {[%emt 0:10:30]} 18. Re2 {[%emt 0:01:30]} Nxg3 {[%emt 0:01:30]} 19. hxg3 {[%emt 0:01:30]} Qd7 {[%emt 0:02:30]} 20. Kf2 {[%emt 0:01:30]} exf4 {[%emt 0:04:28]} 21. gxf4 {[%emt 0:03:30]} Rae8 {[%emt 0:01:58]} 22. Rh1 {[%emt 0:02:30]} Rxe2+ {[%emt 0:02:01]} 23. Qxe2 {[%emt 0:00:30]} Re8 {[%emt 0:00:20]} 24. Qd2 {[%emt 0:04:30]} Qg4 {[%emt 0:02:34]} 25. Ne4 {[%emt 0:02:30]} Bxe4 {[%emt 0:05:06]} 26. dxe4 {[%emt 0:03:30]} Rxe4 {[%emt 0:00:20]} 27. Bd3 {[%emt 0:05:30]} Rxf4+ {[%emt 0:01:50]} 28. Kg1 {[%emt 0:03:30]} Qg5 {[%emt 0:01:42]} 29. Qe2 {[%emt 0:00:30]} f5 {[%emt 0:01:44]} 30. Rh3 {[%emt 0:03:34]} Bd4+ {[%emt 0:01:15]} 31. Kh2 {[%emt 0:01:33]} Rf2 {[%emt 0:00:26]} 32. Rg3 {[%emt 0:02:15]} Qh4+ {[%emt 0:00:09]} 33. Rh3 {[%emt 0:00:59]} Qf4+ {[%emt 0:00:07]} 34. Kh1 {[%emt 0:00:13]} Rxe2 {[%emt 0:00:06]} 35. Bxe2 {[%emt 0:00:12]} Qc1+ {[%emt 0:00:20]} 36. Kh2 {[%emt 0:00:28]} Be5+ {[%emt 0:00:08]} 37. g3 {[%emt 0:00:10]} Qxc2 {[%emt 0:00:10]} 38. Kh1 {[%emt 0:00:39]} Qxe2 {[%emt 0:00:03]} 39. g4 {[%emt 0:00:47]} Qf1# {[%emt 0:00:05]} 0-1

[Event "28th CRO-chT Women 2019"]
[Site "Mali Losinj"]
[Date "2019.10.05"]
[Round "9.4"]
[White "Bogdanic, Katarina"]
[Black "Balent, Sara"]
[Result "1-0"]
[ECO "E18"]
[WhiteElo "1899"]
[BlackElo "1132"]
[Annotator "NA"]
[PlyCount "35"]
[EventDate "2019.09.28"]
[EventType "team-tourn"]
[EventCountry "CRO"]
[SourceTitle "playchess.com"]
[Source "ChessBase"]
[SourceQuality "1"]
[TimeControl "40/5400+30:1800+30"]

1. Nf3 {[%emt 0:00:30]} Nf6 {[%emt 0:00:30]} 2. c4 {[%emt 0:00:00]} e6 {[%emt 0:00:30]} 3. g3 {[%emt 0:00:00]} Be7 {[%emt 0:00:30]} 4. Bg2 {[%emt 0:00:30]} O-O {[%emt 0:00:30]} 5. O-O {[%emt 0:00:30]} d5 {[%emt 0:00:30]} 6. d4 {[%emt 0:03:30]} b6 {[%emt 0:01:30]} 7. cxd5 {[%emt 0:09:30]} exd5 {[%emt 0:01:30]} 8. Nc3 {[%emt 0:06:30]} Bb7 {[%emt 0:01:30]} 9. Bf4 {[%emt 0:02:30]} Nbd7 {[%emt 0:00:30]} 10. Nb5 {[%emt 0:05:30]} c5 {[%emt 0:02:30]} 11. Bc7 {[%emt 0:03:30]} Qe8 {[%emt 0:01:30]} 12. Nd6 {[%emt 0:01:30]} Bxd6 {[%emt 0:01:30]} 13. Bxd6 {[%emt 0:00:00]} Rc8 {[%emt 0:02:30]} 14. Bxf8 {[%emt 0:00:00]} Qxf8 {[%emt 0:00:30]} 15. Rc1 {[%emt 0:00:30]} Qe7 {[%emt 0:01:30]} 16. e3 {[%emt 0:05:30]} Ne4 {[%emt 0:01:30]} 17. Bh3 {[%emt 0:03:30]} Re8 {[%emt 0:01:30]} 18. Qa4 {[%emt 0:01:30]} 1-0

[Event "28th CRO-chT Women 2019"]
[Site "Mali Losinj"]
[Date "2019.10.05"]
[Round "9.8"]
[White "Ascic, Josipa"]
[Black "Vujnovic, Patricija"]
[Result "0-1"]
[ECO "B15"]
[WhiteElo "1692"]
[BlackElo "2052"]
[Annotator "NA"]
[PlyCount "76"]
[EventDate "2019.09.28"]
[EventType "team-tourn"]
[EventCountry "CRO"]
[SourceTitle "playchess.com"]
[Source "ChessBase"]
[SourceQuality "1"]
[TimeControl "40/5400+30:1800+30"]

1. e4 {[%emt 0:00:00]} c6 {[%emt 0:03:30]} 2. d4 {[%emt 0:00:00]} d5 {[%emt 0:00:30]} 3. Nc3 {[%emt 0:00:30]} dxe4 {[%emt 0:00:00]} 4. Nxe4 {[%emt 0:00:30]} Nf6 {[%emt 0:00:00]} 5. Nxf6+ {[%emt 0:01:30]} exf6 {[%emt 0:00:30]} 6. c3 {[%emt 0:00:30]} Bd6 {[%emt 0:00:00]} 7. Bd3 {[%emt 0:00:30]} O-O {[%emt 0:00:00]} 8. Qc2 {[%emt 0:00:30]} Re8+ {[%emt 0:00:30] B15: Caro-Kann: 3 Nc3: 3...g6 and 3...dxe4 4 Nxe4 Nf6 5 Nxf6+ exf6} 9. Ne2 {[%emt 0:00:30]} h5 {[%emt 0:00:30]} 10. Be3 {[%emt 0:00:30]} Nd7 {[%emt 0:00:30]} 11. O-O-O {[%emt 0:01:30]} Nf8 {[%emt 0:00:00]} 12. Bf4 $146 {[%emt 0:02:30]} ({Predecessor:} 12. Kb1 Be6 13. c4 Rc8 14. h3 h4 15. Rdg1 b5 16. c5 {½-½ (45) Saric,I (2669)-Howell,D (2676) Riadh 2017}) 12... Rxe2 {[%emt 0:01:00]} 13. Bxe2 {[%emt 0:00:30]} Bxf4+ {[%emt 0:00:30]} 14. Kb1 {[%emt 0:00:30]} Be6 {[%emt 0:00:30]} 15. g3 {[%emt 0:01:30]} Bd6 {[%emt 0:00:30]} 16. Bxh5 {[%emt 0:01:30]} Qa5 {[%emt 0:01:30]} 17. Be2 {[%emt 0:01:30]} Qxa2+ {[%emt 0:00:30]} 18. Kc1 {[%emt 0:00:00]} Bb3 {[%emt 0:00:30]} 19. Qb1 {[%emt 0:03:00]} Qxb1+ {[%emt 0:00:00]} 20. Kxb1 {[%emt 0:00:30]} Bxd1 {[%emt 0:00:00]} 21. Bxd1 {[%emt 0:00:00]} Re8 {[%emt 0:00:30]} 22. Kc2 {[%emt 0:00:00]} a5 {[%emt 0:00:30]} 23. h4 {[%emt 0:00:30]} Ne6 {[%emt 0:01:30]} 24. h5 {[%emt 0:01:30]} b5 {[%emt 0:02:30]} 25. Bf3 {[%emt 0:02:30]} Rc8 {[%emt 0:00:30]} 26. h6 {[%emt 0:00:30]} g6 {[%emt 0:00:30]} 27. d5 {[%emt 0:01:30]} Ng5 {[%emt 0:01:30]} 28. Bg2 {[%emt 0:00:30]} c5 {[%emt 0:00:30]} 29. f4 {[%emt 0:02:30]} Nh7 {[%emt 0:00:30]} 30. Bf1 {[%emt 0:03:30]} b4 {[%emt 0:01:30]} 31. c4 {[%emt 0:00:00]} a4 {[%emt 0:00:30]} 32. Bd3 {[%emt 0:01:00]} f5 {[%emt 0:00:30]} 33. Ra1 {[%emt 0:00:30]} Ra8 {[%emt 0:00:30]} 34. Be2 {[%emt 0:03:30]} Nf6 {[%emt 0:00:30]} 35. Bf3 {[%emt 0:00:30]} Kh7 {[%emt 0:00:30]} 36. Rh1 {[%emt 0:00:30]} Ng8 {[%emt 0:00:30]} 37. g4 {[%emt 0:01:30]} fxg4 {[%emt 0:00:30]} 38. Bxg4 {[%emt 0:00:30]} f5 $19 {[%emt 0:03:30]} 0-1